bitfinex/quotes_ETHUSD_20250925
["timestamp","ask_amount","ask_price","bid_price","bid_amount"]
[1758840385566,0.52143641,3899.7,3898.5,2.56508913]
[1758840385879,6.518,3899.6,3899.5,2.56443133]
[1758840386081,2.897,3899.6,3899.5,2.56443133]
[1758840386385,2.897,3899.6,3899.5,2.79913133]
[1758840386803,6.565,3899.6,3897.9,0.2347]
[1758840386956,2.56470136,3899.1,3898.1,2.79998838]
[1758840387147,2.56470136,3899.1,3897.9,2.56547696]
[1758840387148,8.072,3899.0,3897.9,2.56542794]
[1758840387352,0.668,3898.9,3897.9,2.56542208]
[1758840387580,7.70289834,3898.8,3897.9,2.56546467]
[1758840387780,8.93796793,3898.7,3898.0,2.56537479]
[1758840388053,8.93796793,3898.7,3897.9,2.56547294]
[1758840388270,8.93796793,3898.7,3898.0,2.56541556]
[1758840388464,11.50292846,3898.7,3898.0,2.56541556]
[1758840388671,9.16426793,3898.7,3897.8,0.2347]
[1758840388857,3.0,3898.4,3897.7,2.56560062]
[1758840389087,3.0,3898.2,3897.0,0.2347]
[1758840389287,2.56546989,3898.0,3897.2,2.56594478]
[1758840389487,3.0,3897.8,3897.1,2.58799998]
[1758840390002,3.128,3897.8,3897.2,0.128]
[1758840390359,3.128,3897.8,3897.2,2.69393777]
[1758840391392,5.69356242,3897.8,3897.2,0.128]
[1758840391600,4.63062158,3897.8,3897.2,0.128]
[1758840391912,4.94432158,3897.8,3897.1,0.022]
[1758840392725,7.50987548,3897.8,3897.1,0.022]
[1758840392884,3.0,3897.6,3897.1,0.022]
[1758840393086,4.4,3897.5,3897.1,0.022]
[1758840393421,3.0,3897.4,3897.1,0.022]
[1758840394398,4.403,3897.3,3897.1,0.022]
[1758840394609,9.541,3897.3,3897.1,0.022]
[1758840394809,9.51600531,3897.3,3897.1,2.58800637]
[1758840394984,9.51600531,3897.3,3897.1,0.022]
[1758840395512,9.51600531,3897.3,3897.2,2.56594478]
[1758840395730,9.51600531,3897.3,3897.1,0.2567]
[1758840397589,9.51600531,3897.3,3897.1,2.82271044]
[1758840397817,3.0,3897.3,3897.2,2.56594478]
[1758840398028,7.399,3897.3,3897.2,3.27324478]
[1758840398228,3.0,3897.3,3897.2,3.27324478]
[1758840398531,2.138,3897.8,3897.3,2.56587894]
[1758840398731,3.2329613,3898.7,3897.2,1.29343078]
[1758840398732,6.536,3897.7,3897.6,2.56568144]
[1758840398890,6.197,3897.7,3897.4,0.2347]
[1758840399087,6.197,3897.7,3897.5,2.56570369]
[1758840399810,9.197,3897.7,3897.6,2.56568144]
[1758840400305,9.197,3897.7,3897.1,2.82265654]
[1758840400527,9.197,3897.7,3897.4,2.5658027]
[1758840400710,3.668,3897.6,3897.1,2.58800765]
[1758840400953,0.668,3897.5,3897.1,2.58800765]
[1758840401262,3.0,3897.3,3897.1,0.022]
[1758840401443,3.0,3897.3,3897.1,2.5880048]
[1758840401753,3.0,3897.3,3897.1,0.022]
[1758840401957,4.398,3897.2,3897.1,2.58799967]
[1758840402332,4.398,3897.2,3897.1,0.022]
[1758840402710,0.128,3897.4,3897.1,2.58801062]
[1758840402932,6.535,3897.3,3897.1,2.58799431]
[1758840403138,6.535,3897.3,3897.1,0.022]
[1758840404043,6.535,3897.3,3897.1,2.58795944]
[1758840404344,6.535,3897.3,3897.1,0.022]
[1758840405251,6.535,3897.3,3897.1,2.58800779]
[1758840405554,6.535,3897.3,3897.1,0.022]
[1758840408437,9.535,3897.3,3897.2,2.56594478]
[1758840409060,9.535,3897.3,3897.1,2.58798403]
[1758840409266,9.535,3897.3,3897.2,2.56594478]
[1758840409577,9.535,3897.3,3897.1,0.022]
[1758840409779,9.535,3897.3,3897.1,2.58800791]
[1758840410083,9.535,3897.3,3897.1,0.022]
[1758840410256,9.535,3897.3,3897.1,2.58801031]
[1758840410773,0.001,3897.8,3897.2,0.6652]
[1758840411071,0.001,3897.8,3897.7,2.69361561]
[1758840411277,4.391,3897.8,3897.7,2.69361561]
[1758840411441,4.391,3897.8,3897.7,3.35881561]
[1758840411637,4.391,3897.8,3897.7,0.3634]
[1758840411838,4.391,3897.8,3897.1,0.022]
[1758840411839,5.1107,3897.8,3897.1,0.022]
[1758840412044,3.51107,3897.7,3897.2,0.128]
[1758840412275,3.0,3897.5,3897.2,0.128]
[1758840412478,4.39,3897.6,3897.2,0.128]
[1758840412479,4.39,3897.4,3897.2,0.128]
[1758840412774,2.138,3897.3,3897.2,0.128]
[1758840413564,2.138,3897.3,3897.1,0.022]
[1758840413769,2.138,3897.3,3897.1,2.58795117]
[1758840413770,4.39,3897.2,3897.1,2.58795117]
[1758840414081,4.39,3897.2,3897.1,0.022]
[1758840414780,4.39,3897.2,3897.1,2.58801062]
[1758840415267,6.528,3897.2,3897.1,2.58801062]
[1758840415574,0.40239359,3897.4,3897.2,2.56589501]
[1758840415780,6.526,3897.3,3897.2,2.56589501]
[1758840415981,6.526,3897.3,3897.1,2.58798915]
[1758840416278,6.526,3897.3,3897.2,2.56594478]
[1758840416482,6.526,3897.3,3897.1,2.58800803]
[1758840417174,6.526,3897.3,3897.2,2.56594478]
[1758840417579,0.40239359,3897.4,3897.1,0.022]
[1758840417759,2.138,3897.4,3897.3,2.56587894]
[1758840418074,6.493,3897.4,3897.2,2.56592612]
[1758840418446,6.493,3897.4,3897.3,2.56587894]
[1758840418846,2.138,3897.6,3897.4,2.5658131]
[1758840419073,7.386,3897.5,3897.4,2.5658131]
[1758840419383,4.386,3897.5,3897.4,2.9956131]
[1758840419752,4.386,3897.5,3897.4,3.2310131]
[1758840419953,4.386,3897.5,3897.4,2.5658131]
[1758840420363,4.386,3897.5,3897.4,2.8012131]
[1758840420564,4.386,3897.5,3897.4,3.2310131]
[1758840421367,5.3385,3897.5,3897.1,0.022]
[1758840421571,3.7197,3897.4,3897.1,0.022]
[1758840421861,3.0,3897.2,3897.1,0.022]
[1758840422062,0.9525,3897.5,3897.1,0.022]
[1758840422284,3.0,3897.3,3897.1,0.6872]
[1758840422467,2.138,3897.4,3897.2,0.2354]
[1758840422672,7.387,3897.3,3897.2,2.80134478]
[1758840422904,3.0,3897.2,3897.1,0.022]
[1758840423704,3.0,3897.2,3897.1,2.58801062]
[1758840423863,7.387,3897.3,3897.2,2.56594478]
[1758840424487,7.387,3897.3,3897.1,0.2539]
[1758840424679,3.0,3897.2,3897.1,0.022]
[1758840425086,4.387,3897.2,3897.1,0.022]
[1758840425294,7.387,3897.2,3897.1,0.022]
[1758840427797,7.387,3897.2,3897.1,3.25851062]
[1758840427995,0.001,3897.4,3897.3,2.56587894]
[1758840428201,9.52,3897.4,3897.3,2.56587894]
[1758840428404,3.001,3897.4,3897.3,3.23637894]
[1758840428608,4.381,3897.4,3897.3,3.23637894]
[1758840429275,0.001,3897.4,3897.3,3.23637894]
[1758840429476,2.622,3897.4,3897.3,3.23637894]
[1758840429672,2.622,3897.4,3897.1,0.022]
[1758840429898,2.622,3897.4,3897.1,0.2539]
[1758840430098,2.622,3897.4,3897.3,2.56587894]
[1758840430307,0.001,3897.4,3897.3,2.56587894]
[1758840430530,3.505,3897.4,3897.1,0.022]
[1758840430719,3.9699,3897.4,3897.1,0.022]
[1758840430917,4.2172,3897.4,3897.1,2.58800602]
[1758840431130,3.0,3897.3,3897.1,0.022]
[1758840431331,3.7122,3897.3,3897.1,0.022]
[1758840431522,0.7122,3897.2,3897.1,0.022]
[1758840432139,5.0902,3897.2,3897.1,0.022]
[1758840432815,8.0902,3897.2,3897.1,0.022]
[1758840433009,9.46891707,3897.2,3897.1,0.022]
[1758840433202,9.59691707,3897.2,3897.1,0.022]
[1758840433744,8.16205897,3897.2,3897.1,0.022]
[1758840433959,4.50671707,3897.2,3897.1,0.022]
[1758840434104,9.644,3897.2,3897.1,0.022]
[1758840434624,3.8402,3897.2,3897.1,0.022]
[1758840434796,9.644,3897.2,3897.1,0.022]
[1758840435201,9.8913,3897.2,3897.1,0.022]
[1758840435423,12.92214478,3897.2,3897.1,0.022]
[1758840435632,14.47103492,3897.2,3897.1,0.022]
[1758840436001,11.90509014,3897.2,3897.1,0.022]
[1758840436418,14.47103492,3897.2,3897.1,0.022]
[1758840438458,8.33223204,3897.2,3897.1,0.022]
[1758840438657,14.84523204,3897.2,3897.1,0.022]
[1758840439327,15.63723204,3897.2,3897.1,0.022]
[1758840439526,16.03970113,3897.2,3897.1,0.022]
[1758840440422,6.35820817,3896.8,3896.7,0.49061952]
[1758840440630,11.10840529,3896.8,3896.7,0.49061952]
[1758840440845,11.77590529,3896.8,3896.7,0.49061952]
[1758840441072,12.17842866,3896.8,3896.7,0.49061952]
[1758840441556,12.17842866,3896.8,3896.7,0.49261952]
[1758840441856,14.09555061,3896.8,3896.7,0.49261952]
[1758840442060,16.23455061,3896.8,3896.7,0.49261952]
[1758840443228,16.23455061,3896.8,3896.7,1e-08]
[1758840443437,5.56726227,3895.2,3894.5,0.234]
[1758840443644,12.45645939,3895.2,3894.5,0.234]
[1758840443846,13.12395939,3895.2,3894.5,0.234]
[1758840444133,6.61195939,3895.2,3893.1,2.58862763]
[1758840444452,13.91695939,3895.2,3894.4,0.234]
[1758840444646,15.56537342,3895.2,3894.4,0.234]
[1758840444876,15.69086205,3895.2,3894.4,0.234]
[1758840445457,15.69086205,3895.2,3893.8,0.234]
[1758840445894,2.56792152,3894.2,3893.8,0.234]
[1758840446061,12.08692152,3894.2,3893.8,0.234]
[1758840446554,9.519,3894.2,3893.8,0.234]
[1758840447291,12.08692152,3894.2,3893.8,0.234]
[1758840447679,13.55239414,3894.2,3893.1,0.02]
[1758840447992,14.99984576,3894.2,3893.3,0.234]
[1758840448194,5.53572712,3894.2,3893.3,0.234]
[1758840448354,9.9207545,3894.2,3893.8,0.4315]
[1758840448582,9.9207545,3894.2,3893.9,0.234]
[1758840448755,12.48867602,3894.2,3893.7,0.234]
[1758840449377,9.9207545,3894.2,3893.7,0.234]
[1758840449576,9.9197545,3894.2,3894.1,0.4515]
[1758840449792,9.9197545,3894.2,3894.1,0.6855]
[1758840449991,9.9197545,3894.2,3894.1,0.254]
[1758840450362,0.4027545,3894.2,3894.1,3.25348746]
[1758840450602,2.29,3894.2,3894.1,3.83564771]
[1758840450772,0.40273038,3895.1,3894.4,2.56778298]
[1758840450972,3.0,3894.9,3894.2,2.56786544]
[1758840451211,3.0,3894.7,3894.3,0.6655]
[1758840451494,2.14,3895.0,3894.3,0.6655]
[1758840451495,3.0,3894.5,3894.3,0.6655]
[1758840451696,3.0,3894.3,3894.1,0.02]
[1758840451869,9.52,3894.2,3894.1,0.02]
[1758840452071,12.08792152,3894.2,3894.1,0.02]
[1758840452571,12.46511864,3894.2,3894.1,0.02]
[1758840453189,12.08792152,3894.2,3894.1,0.02]
[1758840453389,13.62024267,3894.2,3894.1,0.02]
[1758840454724,3.0,3894.2,3894.1,3.25348746]
[1758840455007,7.381,3894.2,3894.1,0.6855]
[1758840456109,7.381,3894.2,3894.1,0.02]
[1758840456299,7.381,3894.2,3894.1,0.254]
[1758840456861,7.69487014,3894.2,3894.1,0.02]
[1758840457162,11.30748878,3894.2,3894.1,0.02]
[1758840457375,6.92648878,3894.2,3894.1,0.02]
[1758840457581,3.31387014,3894.2,3894.1,0.02]
[1758840457776,9.83587014,3894.2,3894.1,0.02]
[1758840458699,3.31387014,3894.2,3894.1,0.02]
[1758840458906,3.0,3894.2,3894.1,0.254]
[1758840459091,9.462,3894.2,3894.1,3.25348746]
[1758840459802,0.40273155,3895.0,3894.6,2.56764179]
[1758840460012,0.12548863,3895.2,3894.6,2.56765778]
[1758840460013,2.14,3894.7,3894.6,2.56765778]
[1758840460329,0.12548863,3895.2,3895.1,2.56732818]
[1758840460619,9.522,3895.2,3895.1,2.56732818]
[1758840460801,9.522,3895.2,3895.1,3.23282818]
[1758840461132,3.0,3895.1,3894.7,0.234]
[1758840461296,3.0,3894.9,3894.8,0.6655]
[1758840461499,3.0,3894.9,3894.8,2.56752593]
[1758840461685,3.0,3894.9,3894.7,2.56758502]
[1758840461877,4.381,3894.8,3894.7,2.56758502]
[1758840462195,4.381,3894.8,3894.7,3.23308502]
[1758840462900,6.521,3894.8,3894.7,3.23309185]
[1758840463732,6.521,3894.8,3894.7,0.6655]
[1758840463933,6.521,3894.8,3894.7,0.234]
[1758840464237,9.521,3894.8,3894.6,0.128]
[1758840464540,9.521,3894.8,3894.2,0.128]
[1758840464541,3.6675,3894.7,3894.2,0.128]
[1758840464710,3.0,3894.5,3894.1,0.022]
[1758840465030,3.0,3894.3,3894.1,0.022]
[1758840465206,7.379,3894.2,3894.1,0.256]
[1758840465599,7.379,3894.2,3894.1,2.82398746]
[1758840465899,7.379,3894.2,3894.1,0.256]
[1758840466125,9.518,3894.2,3894.1,0.256]
[1758840466433,9.518,3894.2,3894.1,2.82398746]
[1758840466734,3.0,3894.2,3894.1,2.82398746]
[1758840466909,7.378,3894.2,3894.1,3.25548746]
[1758840467614,3.0,3895.1,3894.4,2.56775544]
[1758840467820,2.14,3895.0,3894.5,0.234]
[1758840468124,3.0,3894.8,3894.6,2.56765518]
[1758840468325,7.377,3894.7,3894.6,2.56765518]
[1758840468646,0.12879243,3895.2,3894.9,2.56745522]
[1758840468846,3.0,3895.0,3894.9,2.56745522]
[1758840469158,3.0,3895.0,3894.1,0.022]
[1758840469336,4.377,3894.9,3894.1,0.022]
[1758840469535,7.377,3894.9,3894.8,2.56752593]
[1758840469843,7.376,3894.9,3894.8,3.25282593]
[1758840470406,2.14,3895.3,3894.8,0.6853]
[1758840470668,0.37719712,3896.5,3894.9,0.7109746]
[1758840470947,3.0,3895.7,3895.0,0.6853]
[1758840471117,0.12855901,3895.7,3895.6,2.5669888]
[1758840471308,4.383,3895.7,3895.6,2.8086888]
[1758840472404,0.2377,3896.4,3895.9,2.56680099]
[1758840472638,6.521,3896.3,3896.2,2.56660335]
[1758840473007,9.521,3896.3,3896.2,2.56660335]
[1758840473206,3.0,3896.3,3896.2,2.56660335]
[1758840473432,0.51136487,3896.6,3896.5,2.56640574]
[1758840473713,3.0,3896.4,3895.8,2.56686272]
[1758840473942,4.382,3896.3,3895.7,0.2417]
[1758840474245,0.02,3896.9,3896.8,2.56620817]
[1758840474732,6.545,3896.9,3896.8,3.37950817]
[1758840474924,9.545,3896.9,3896.8,3.37950817]
[1758840475126,9.545,3896.9,3896.8,0.128]
[1758840475317,7.64036231,3896.9,3896.7,2.56622744]
[1758840475518,7.64036231,3896.9,3896.0,2.56669859]
[1758840475519,0.02,3896.9,3896.8,3.25150817]
[1758840475748,4.407,3896.9,3896.6,2.56632477]
[1758840475917,3.0,3896.8,3896.3,2.80823748]
[1758840476118,3.0,3896.8,3896.7,2.56627402]
[1758840476331,3.0,3896.8,3896.3,0.3697]
[1758840476557,3.0,3896.8,3896.3,0.128]
[1758840476558,1.06089712,3896.7,3896.3,0.128]
[1758840476721,3.0,3896.5,3896.0,2.6946721]
[1758840476919,0.2377,3896.4,3896.0,2.69472751]
[1758840477149,6.534,3896.3,3896.2,2.56660335]
[1758840477453,6.534,3896.3,3896.2,3.25190335]
[1758840477622,6.534,3896.3,3896.2,2.56660335]
[1758840477822,6.534,3896.3,3896.0,0.128]
[1758840478022,6.534,3896.3,3896.2,2.56660335]
[1758840478418,6.534,3896.3,3896.0,0.128]
[1758840478730,10.1874,3896.3,3896.2,2.56660335]
[1758840479130,10.1874,3896.3,3896.1,2.56665195]
[1758840479330,0.40250447,3896.4,3896.2,2.80830335]
[1758840479655,0.02,3896.9,3896.8,2.56620817]
[1758840479834,6.552,3896.9,3896.8,2.56620817]
[1758840480032,9.552,3896.9,3896.8,2.80790817]
[1758840480238,9.552,3896.9,3896.8,3.25150817]
[1758840480422,3.02,3896.9,3896.8,3.25150817]
[1758840480823,0.02,3896.9,3896.8,2.56620817]
[1758840481024,4.412,3896.9,3896.8,3.27717025]
[1758840481226,0.02,3896.9,3896.8,3.25150817]
[1758840481524,0.02,3896.9,3896.8,3.83328978]
[1758840481955,0.02,3896.9,3896.8,2.56620817]
[1758840482571,0.7037,3896.9,3896.7,2.56626926]
[1758840482977,2.8227,3896.8,3896.1,0.2417]
[1758840483182,3.0,3896.6,3896.2,2.56658642]
[1758840483365,1.70537,3896.5,3896.2,2.56658642]
[1758840483773,1.70537,3896.5,3895.5,3.01062442]
[1758840483774,0.7101,3896.4,3895.5,0.4436]
[1758840484070,4.394,3896.3,3896.1,2.56660896]
[1758840485281,3.0,3896.2,3895.8,2.56682088]
[1758840485781,3.7101,3896.4,3895.9,2.56679832]
[1758840485947,3.0,3896.0,3895.9,2.56679832]
[1758840486144,0.72981016,3896.4,3895.9,2.80590099]
[1758840486446,3.0,3896.2,3896.1,2.56662166]
[1758840486658,3.0,3896.1,3896.0,0.2391]
[1758840486984,3.0,3896.1,3895.6,0.7078]
[1758840487280,4.39,3896.2,3895.6,0.7078]
[1758840487578,3.0,3896.1,3895.9,2.5667845]
[1758840487781,3.0,3896.1,3895.8,2.56684839]
[1758840488075,3.0,3896.1,3895.7,2.80602518]
[1758840488275,3.0,3896.1,3895.4,2.806196]
[1758840488582,0.40252984,3896.2,3896.1,2.56666923]
[1758840488797,7.79152984,3896.2,3896.1,0.7078]
[1758840488979,4.79152984,3896.2,3895.8,2.56685781]
[1758840489143,0.7101,3896.1,3895.6,2.56699866]
[1758840489348,0.2497,3896.1,3895.7,0.128]
[1758840489549,0.40252984,3896.2,3895.7,0.128]
[1758840489783,0.40252984,3896.2,3896.1,2.56666923]
[1758840489976,6.91552984,3896.2,3896.0,2.56672078]
[1758840490210,0.40252984,3896.2,3896.1,2.56666923]
[1758840490376,7.39,3896.1,3896.0,0.128]
[1758840490574,7.389,3896.1,3896.0,0.3671]
[1758840490781,7.389,3896.1,3896.0,2.93383511]
[1758840491408,7.389,3896.1,3896.0,0.128]
[1758840492495,7.389,3896.1,3896.0,2.69473511]
[1758840492795,7.389,3896.1,3896.0,0.128]
[1758840493300,9.525,3896.1,3896.0,2.69473511]
[1758840493865,2.139,3896.6,3896.0,0.8358]
[1758840494065,2.139,3896.6,3896.5,2.6943472]
[1758840494303,5.424,3896.6,3896.5,3.1630472]
[1758840494480,5.424,3896.6,3896.5,0.8358]
[1758840494682,5.424,3896.6,3896.5,0.128]
[1758840495084,5.424,3896.6,3896.5,0.3671]
[1758840495510,5.424,3896.6,3896.5,2.69440574]
[1758840495796,0.02,3896.9,3896.7,2.56625369]
[1758840496102,5.139,3896.7,3896.6,3.27411828]
[1758840496395,5.139,3896.7,3896.6,0.2391]
[1758840496765,0.02,3896.9,3896.6,2.56633988]
[1758840496968,4.384,3896.7,3896.5,0.128]
[1758840497168,3.7101,3896.6,3895.6,0.2391]
[1758840497474,3.7101,3896.6,3895.5,2.56701134]
[1758840497475,5.56648267,3896.4,3895.5,2.56701134]
[1758840497689,3.0,3896.2,3895.7,2.56690544]
[1758840497888,4.386,3896.1,3895.7,2.56690544]
[1758840498209,2.139,3896.0,3895.7,2.56690544]
[1758840498385,2.139,3896.0,3895.3,0.2391]
[1758840498714,2.139,3896.0,3895.8,2.56686266]
[1758840498915,2.139,3896.0,3895.6,2.56699441]
[1758840499301,0.67514,3895.9,3894.6,0.2279]
[1758840499510,11.576,3895.8,3895.4,2.56706647]
[1758840499707,7.19,3895.8,3895.0,0.2279]
[1758840499912,9.329,3895.8,3895.7,2.56693277]
[1758840500088,7.19,3895.8,3895.7,2.79483277]
[1758840500420,11.574,3895.8,3895.1,0.2279]
[1758840500618,4.384,3895.8,3895.7,2.56693277]
[1758840500786,11.574,3895.8,3895.7,3.23563277]
[1758840501205,7.19,3895.8,3895.7,2.79483277]
[1758840501387,11.573,3895.8,3895.7,2.56693277]
[1758840502094,3.0,3896.2,3896.0,2.5666987]
[1758840502288,9.329,3896.3,3896.0,2.5666987]
[1758840502289,7.383,3896.1,3896.0,2.5666987]
[1758840502483,7.383,3896.1,3895.7,0.2279]
[1758840502484,3.0,3896.0,3895.7,0.2279]
[1758840502699,4.383,3896.1,3896.0,2.56673511]
[1758840503021,4.383,3896.1,3896.0,3.23543511]
[1758840503314,3.021,3896.9,3896.0,0.6687]
[1758840503615,6.52,3896.8,3896.7,2.56624334]
[1758840503794,0.6541,3896.8,3896.7,2.56624334]
[1758840503995,3.0,3896.7,3896.2,2.79449243]
[1758840504312,3.0,3896.7,3896.3,2.56649614]
[1758840504483,3.0,3896.7,3896.3,2.56653748]
[1758840504684,3.0,3896.7,3896.4,2.5664245]
[1758840505018,3.0,3896.7,3896.2,2.79449415]
[1758840505219,3.0,3896.7,3896.3,2.56653748]
[1758840505421,3.0,3896.7,3896.6,2.56633988]
[1758840505593,0.42346069,3896.9,3896.7,2.56627402]
[1758840505784,3.282,3896.9,3896.8,2.59187025]
[1758840505989,0.021,3896.9,3896.8,3.23490817]
[1758840506690,0.021,3896.9,3896.8,2.79410817]
[1758840506888,0.021,3896.9,3896.8,3.23490817]
[1758840507219,4.411,3896.9,3896.8,2.92210817]
[1758840507410,4.411,3896.9,3896.8,2.69420817]
[1758840507716,4.8521,3896.9,3895.8,0.2279]
[1758840507887,5.0969,3896.9,3896.7,2.56621295]
[1758840508084,4.411,3896.9,3896.8,2.56620817]
[1758840510816,4.409,3896.9,3896.8,2.56620817]
[1758840511021,4.409,3896.9,3896.6,0.128]
[1758840511186,4.409,3896.9,3896.8,2.56620817]
[1758840512095,0.021,3896.9,3896.8,2.56620817]
[1758840512300,4.408,3896.9,3896.8,2.56620817]
[1758840512497,0.021,3896.9,3896.8,2.79410817]
[1758840512711,3.73,3896.9,3896.8,3.23490817]
[1758840513030,0.021,3896.9,3896.8,3.83039865]
[1758840513236,0.021,3896.9,3896.8,3.95839865]
[1758840515737,0.021,3896.9,3896.8,3.98406073]
[1758840515936,0.021,3896.9,3896.8,3.95839865]
[1758840516438,0.021,3896.9,3896.8,2.69420817]
[1758840516739,0.021,3896.9,3896.8,3.36290817]
[1758840521023,0.021,3896.9,3896.8,3.38857025]
[1758840523451,0.001,3897.3,3897.2,2.56594478]
[1758840523652,0.001,3897.3,3897.2,3.10480115]
[1758840523875,0.001,3897.3,3897.2,3.64794171]
[1758840524032,0.001,3897.3,3897.2,3.43504171]
[1758840524232,0.001,3897.3,3897.2,3.20714171]
[1758840525325,0.001,3897.3,3897.2,3.87584171]
[1758840526844,0.001,3897.3,3897.2,3.43504171]
[1758840527049,0.001,3897.3,3897.2,3.87584171]
[1758840528984,0.001,3897.3,3897.2,3.20714171]
[1758840529158,0.6807,3897.3,3897.2,2.69394478]
[1758840529485,0.6807,3897.3,3897.2,3.36664478]
[1758840529486,0.001,3897.3,3897.2,3.36664478]
[1758840530082,0.001,3897.3,3897.2,2.92024478]
[1758840530282,0.001,3897.3,3897.2,2.69394478]
[1758840530463,0.001,3897.3,3897.2,3.88344171]
[1758840531084,0.001,3897.3,3897.2,3.65714171]
[1758840531591,0.001,3897.3,3897.2,0.128]
[1758840531891,7.39089712,3897.3,3896.7,2.56626384]
[1758840532054,0.6797,3897.2,3896.6,2.56632073]
[1758840532255,0.6797,3897.1,3895.6,2.79329866]
[1758840532596,0.2402,3897.1,3896.6,2.56632546]
[1758840532761,0.6797,3897.0,3896.9,2.5661303]
[1758840532960,5.0627,3897.0,3896.9,2.59179172]
[1758840533185,5.0627,3897.0,3896.9,2.56614231]
[1758840534464,0.001,3897.3,3897.2,2.56594478]
[1758840534671,0.6797,3897.2,3897.1,2.56601062]
[1758840534991,0.6797,3897.2,3897.0,2.56601637]
[1758840535298,0.6797,3897.1,3897.0,2.56601637]
[1758840535466,4.384,3897.3,3897.2,2.56594478]
[1758840535992,0.001,3897.3,3897.2,2.56594478]
[1758840536199,0.001,3897.3,3897.2,3.10433691]
[1758840537282,0.001,3897.3,3897.2,3.33063691]
[1758840538072,0.001,3897.3,3897.2,3.10433691]
[1758840539395,0.001,3897.3,3897.2,3.77703691]
[1758840540090,0.001,3897.3,3897.2,3.33063691]
[1758840540294,0.001,3897.3,3897.2,3.10433691]
[1758840540590,0.001,3897.3,3897.2,3.80269635]
[1758840540995,0.001,3897.3,3897.2,3.77703691]
[1758840541796,0.001,3897.3,3897.2,3.23233691]
[1758840541965,0.001,3897.3,3897.2,2.69394478]
[1758840543179,0.001,3897.3,3897.2,7.64630422]
[1758840543386,0.001,3897.3,3897.2,7.62064478]
[1758840543674,0.001,3897.3,3897.2,2.56594478]
[1758840545878,0.001,3897.3,3897.2,7.63594478]
[1758840546079,0.001,3897.3,3897.2,8.6563409]
[1758840547804,0.001,3897.3,3897.2,8.2151409]
[1758840547983,0.001,3897.3,3897.2,6.94694478]
[1758840549002,0.001,3897.3,3897.2,7.19474478]
[1758840549305,0.001,3897.3,3897.2,7.63594478]
[1758840550009,0.001,3897.7,3897.6,2.56568144]
[1758840550010,1e-08,3897.7,3897.6,2.56568144]
[1758840550370,1e-08,3897.7,3897.6,3.25468144]
[1758840550601,1e-08,3897.7,3897.6,4.53161351]
[1758840551509,1e-08,3897.7,3897.6,3.84261351]
[1758840551672,1e-08,3897.7,3897.6,2.56568144]
[1758840551868,0.70600001,3897.7,3897.6,2.56568144]
[1758840552375,1e-08,3897.7,3897.6,2.56568144]
[1758840553202,0.70600001,3897.7,3897.6,2.69368144]
[1758840553502,1e-08,3897.7,3897.6,2.69368144]
[1758840554006,0.70600001,3897.7,3897.6,2.69368144]
[1758840554710,2.84400001,3897.7,3897.6,2.69368144]
[1758840555011,3.53720001,3897.7,3897.6,2.69368144]
[1758840555905,5.78020001,3897.7,3897.6,2.69368144]
[1758840556097,7.91820001,3897.7,3897.6,2.69368144]
[1758840557007,3.0,3897.6,3896.9,0.002]
[1758840557208,1.84863971,3897.5,3897.1,2.56599]
[1758840557506,3.128,3897.4,3896.9,0.002]
[1758840557754,3.37719712,3897.4,3896.9,0.002]
[1758840557911,3.0,3897.2,3896.9,0.002]
[1758840558108,1.12457971,3897.1,3896.9,0.002]
[1758840558312,17.51527358,3897.0,3896.9,0.002]
[1758840558843,2.56633988,3896.6,3896.5,0.002]
[1758840559040,8.209537,3896.6,3896.5,0.002]
[1758840559341,8.888137,3896.6,3896.5,0.002]
[1758840559512,10.03357347,3896.6,3896.5,0.002]
[1758840560216,10.03357347,3896.6,3895.6,0.128]
[1758840560217,2.56660335,3896.2,3895.6,0.128]
[1758840560416,2.56660335,3896.2,3894.2,0.2339]
[1758840560417,3.0,3895.8,3895.2,0.128]
[1758840560633,0.128,3895.6,3895.2,0.128]
[1758840560833,5.0606,3895.5,3895.2,0.128]
[1758840561040,0.73266,3895.4,3895.2,0.128]
[1758840561425,0.6786,3895.3,3894.5,2.56771653]
[1758840561735,2.69526227,3895.2,3894.6,0.128]
[1758840562109,6.37386227,3895.2,3894.6,0.128]
[1758840562310,7.817155,3895.2,3894.2,0.128]
[1758840562841,6.41908985,3895.2,3894.1,0.02]
[1758840563043,0.792,3894.9,3894.1,0.02]
[1758840563248,2.56792152,3894.2,3894.1,0.02]
[1758840563443,7.387,3894.2,3894.1,0.02]
[1758840563631,11.88578014,3894.2,3894.1,0.02]
[1758840564142,12.26297726,3894.2,3894.1,0.02]
[1758840564737,9.69505574,3894.2,3894.1,0.02]
[1758840564937,5.71084227,3894.2,3894.1,0.02]
[1758840565247,12.36770486,3894.2,3894.1,0.02]
[1758840565434,14.93562638,3894.2,3893.1,0.02]
[1758840565644,0.128,3893.6,3893.1,0.02]
[1758840565815,0.128,3893.2,3893.1,0.02]
[1758840566015,9.655,3893.2,3893.1,0.02]
[1758840566245,10.3336,3893.2,3893.1,0.02]
[1758840566441,11.40467971,3893.2,3893.1,0.02]
[1758840567723,13.97326082,3893.2,3893.1,0.02]
[1758840568067,4.19907971,3893.2,3893.1,0.02]
[1758840568230,3.6786,3893.2,3893.1,0.02]